{"text_format":"3","workbook":"xlsx","n_sheets":5,"sheets":["Instructions","Energy Inventory","Alternate Energy Inventory","Nuclear Factors","CO2 Emission Factors"],"not_rendered":{"defined_names":3,"comments":4},"read":"whole","date_system":"1900"}

{"sheet":"Instructions","index":0,"n_rows":55,"n_cols":4,"rows_kept":55,"merged":[[2,1,2,2],[3,1,3,2],[4,1,4,2],[23,1,23,2],[24,1,24,2],[25,1,25,2],[26,1,26,2],[29,0,42,0],[43,0,45,0],[46,0,52,0]]}
["Energy Data Worksheet: Instructions for Completion",null,null,"Cradle to Cradle Certified™ Products Program"]
["Introduction"]
[null,"Renewable Energy and Carbon Management – Cradle to Cradle products are manufactured in a way that positively impacts our energy supply, ecosystem balance, community, and ultimately strives to keep carbon in soil and earth vegetation where it belongs."]
[]
[null,"The intention of this category is to provide a quantitative measure of the percentage of renewably generated energy that is utilized in the manufacture of the product. Purchased electricity and direct on- site emissions associated with the final manufacturing stage of the product, as well as embodied energy associated with the product from Cradle to Gate are considered, depending on the level of certification."]
[]
["Requirements"]
[]
[null,"BASIC","Annual purchased electricity and direct on-site emissions associated with the final manufacturing stage of the product are quantified. "]
[]
[null,"BRONZE","A renewable energy use and carbon management strategy is developed. "]
[]
[null,"SILVER","For the final manufacturing stage of the product, 5% of purchased electricity is renewably sourced or offset with renewable energy projects, and 5% of direct on- site emissions are offset. "]
[]
[null,"GOLD","For the final manufacturing stage of the product, 50% of purchased electricity is renewably sourced or offset with renewable energy projects, and 50% of direct on- site emissions are offset. "]
[]
[null,"PLATINUM","For the final manufacturing stage of the product, >100% of purchased electricity is renewably sourced or offset with renewable energy projects, and >100% of direct on-site emissions are offset. "]
[null,null,"The embodied energy associated with the product from Cradle to Gate is characterized and quantified, and a strategy to optimize is developed. At re- application, progress on the optimization plan is demonstrated. "]
[null,null,"≥ 5% of the embodied energy associated with the product from Cradle to Gate is covered by offsets or otherwise addressed (e.g., through projects with suppliers, product re-design, savings during the use phase, etc.). "]
[]
["Instructions"]
[]
[null,"Fill out energy inventory to characterize Basic energy sources and uses"]
[null,"The energy use and emissions calculations must pertain to the final manufacturing stage of the product only, rather than to all of the product relevant processes at the facility. The intent of this is to establish an even playing field for manufacturers with varying levels of vertical integration and to measure energy used for similar processes. Processes that are considered to represent the final manufacturing stage may be further clarified on an industry-specific basis in the future, but initially the applicant, together with the assessor, will define the scope."]
[]
[null,"Most will use the standard Energy Inventory worksheet to calculate energy and emissions."]
[null,"If you would like to convert all energy and emissions information to CO2 equivalents for the purpose of using verified carbon offsets for renewable energy generation to cover the entire scope of emissions, you will need to use the Alternate Energy Inventory worksheet."]
[]
[]
["BASIC",1,"List sources of electrical energy for the facility, including purchased electricity and on-site renewable electricity (Table 1a/1b)"]
[null,null,"a. List the amount of purchased electricity used annually. If the electricity supplier uses renewable energy and the applicant wishes to claim that renewable energy as part of the production process, verification must be provided that this renewable electricity is being delivered to the applicant, and is not being double counted elsewhere in the system. Purchased electricity must be reported in terms of kilowatt hours (kWh). Also note that overhead operations including facility air conditioning and lighting may be considered non-attributable (see the Greenhouse Gas (GHG) Protocol Product Standard for detail). Even so, if it is not possible to separate these from the total, they may be included."]
[null,null,"b. List any electricity purchased through Green Pricing Programs, or voluntary premium pricing on renewable electricity supplied by a utility."]
[null,null,"c. List electricity generated via on-site renewables, including the energy type and location. (Note that on-site renewable energy that does not produce electricity should be reported in step 2)"]
[null,null,"d. Compliant Renewable Energy Certificates (RECs) may be listed in table 2b. REC certificates should be provided as evidence of meeting the requirement. RECs should be from voluntary programs and should be purchased based on the most recent years electricity use data."]
[null,null,"e. Allocate all energy sources to the final manufacturing stage of the applicant product. The final manufacturing stage generally refers to the processes which transform the product from raw materials into a finished product, and are to be agreed between the applicant and the assessor. Indicate how these allocations were estimated."]
[null,2,"List sources of direct on-site emissions (Table 2a/2b)"]
[null,null,"a. List sources of CO2 and other greenhouse gas emissions from on-site sources directly related to the manufacture of the product. Be sure to include all on-site fuel uses relevant to the product, such as gasoline for company owned vehicles, propane, etc. when attributable to the product. Also be sure to include any relevant product-attributable, non-energy related emissions, such as methane from water treatment ponds, fugitive emissions from refrigerants, and/or carbon dioxide from cement production."]
[null,null,"b. List any renewable, bio-based fuel sources used on site. These may be used to calculate avoided emissions of fossil fuel or synthetic waste combustion. (Table 2a)"]
[null,null,"c. Calculate all emissions totals in tCO2e (tons carbon dioxide equivalents), using emissions factors. Emissions factors for several common fuels will populate automatically, given fuel quantity in the appropriate units. Sources for other relevant emissions factors include the World Resources Institute (2008) and the GHG Protocol tool for stationary combustion."]
[null,3,"List verified carbon offsets for managing on-site emissions"]
[null,null,"a. A carbon offset represents a specific quantity of greenhouse gas (GHG) emission reductions (i.e. a ton of carbon dioxide sequestered or avoided) from a project  based activity, which is purchased in order to negate or diminish the impact of the  recipient's GHG emissions. Carbon offsets are appropriate for emissions generated at the manufacturing site, which can not otherwise be avoided. Offsets should be from verified carbon offset registries."]
[null,"ALTERNATIVE","Convert all electricity and emissions to CO2 equivalents, and offset all energy uses"]
[null,null,"a. Alternatively to the above, carbon emissions equivalents may be accounted for all energy, including purchased energy and on-site emissions, using the provided alternative inventory sheet (Alternative Energy Inventory). Verified carbon offsets may only be used to compensate for electrical energy use only if the carbon offset projects selected promote the development of new renewable energy projects, and only if electrical energy has been converted to CO2 equivalents."]
["BRONZE",4,"Create a plan to use renewable energy and manage on-site carbon emissions"]
[null,null,"Demonstrate a commitment to renewable energy use, and establish benchmarks in achieving renewable energy goals. This requirement is not reflected in the worksheets. Please work with the assessor and refer to the Cradle to Cradle Certified Product Standard for more guidance on developing a strategy and plan."]
[null,null,"The intent of this requirement is to challenge manufacturers to develop a strategy that not only increases renewable energy use and reduces carbon emissions, but also achieves the ultimate goal of using > 100% renewable energy in the final manufacturing stages of the product. "]
["SILVER/GOLD/PLATINUM",5,"Use renewable energy and manage on-site carbon emissions"]
[null,null,"a. The provided worksheets are designed to help calculate the total energy needed in the final stage of manufacture of the product, the portion of renewable electricity used, and the emissions that must be managed."]
[null,null,"b. On Site Renewables: Calculate the percentage of on-site renewable electricity generation as a proportion of the overall purchased electricity attributed to the final manufacturing stage of the product based on data from the previous year. To meet the renewable electricity use requirement for a particular level, the remaining percentage of renewable electricity must be compensated for by the purchase of RECs or offsets."]
[null,null,"c. Renewable Energy Credits (RECs): If purchasing RECs to compensate for the percent of renewable electricity required, the RECs must be from voluntary programs (as opposed to compliance programs). In the U.S., Green-e RECs must be purchased. Outside the U.S., the use of equivalent, verified RECs is appropriate. It is important to ensure that RECs are not double counted and the applicant has valid claim to the use of the renewable energy attribute provided."]
[null,null,"d. Offsets supporting Renewable Energy: Registered carbon offsets that support renewable energy projects may be used in place of RECs for purchased electricity; however, in this case the electricity needs to be converted to metric tons CO2 equivalents (tCO2e) using the utility or regional grid energy mix. Renewable energy in a grid or regional mix will result in lower emissions overall, so that the amounts of offsets are less than if energy was produced from fossil fuel sources."]
[null,6,"Calculate and compensate for embodied energy"]
[null,null,"The requirement to quantify and compensate for embodied energy of a product is not reflected in this worksheet. Please work with the assessor and refer to the Cradle to Cradle Certified Product Standard for more guidance on calculating embodied energy of the product."]
[]
[null,"Energy Data Worksheet / Effective September 11, 2020 / Approved by M. Kausch / Cradle to Cradle Certified™ Products Program"]

{"sheet":"Energy Inventory","index":1,"n_rows":59,"n_cols":11,"rows_kept":59,"merged":[[2,0,2,10],[4,1,4,3],[5,1,5,3],[6,1,6,3],[10,0,10,10],[11,7,11,10],[12,7,12,10],[13,7,13,10],[14,7,14,10],[15,7,15,10],[16,7,16,10],[17,7,17,10],[18,7,18,10],[19,7,19,10],[20,2,20,5],[23,7,23,10],[24,7,24,10],[25,7,25,10],[26,7,26,10],[27,7,27,10],[28,7,28,10],[29,7,29,10],[30,7,30,10],[31,7,31,10],[32,7,32,10],[33,1,33,3],[35,7,35,10],[36,7,36,10],[37,7,37,10],[38,7,38,10],[39,7,39,10],[40,1,40,3],[42,8,42,10],[43,8,43,10],[44,8,44,10],[45,8,45,10],[46,8,46,10],[61,0,61,10]]}
["Cradle to Cradle Certified(CM) Basic level and above"]
["Energy Data Worksheet: Using On-site renewables, RECs, and Off-sets",{"$nulls":9},"Cradle to Cradle Certified™ Products Program"]
["Fill in these tables when onsite renewables, Green power pricing, and/or Renewable Energy Certificates (RECs) are being used to cover purchased electricity, and carbon offsets and/or renewable on-site combustion is being used to cover other emissions. Note that RECs apply only to purchased electricity and do not count toward direct emissions reductions."]
["Facility Information",{"$nulls":6},"Goal","Actual"]
["Manufacturing Facility Name:",{"$nulls":5},"Renewable electricity goal (%):",null,{"$f":"D57","v":{"$error":"#DIV/0!"}}]
["Address:",{"$nulls":5},"Emissions offset goal (%):",null,{"$f":"K56","v":{"$error":"#DIV/0!"}}]
["Date range of data:"]
[{"$nulls":6},"Emissions"]
[{"$nulls":6},"Offsets/Renewables"]
[]
["Table 1a: Annual purchased and onsite renewable electricity (including conventional and renewable electricity purchased through the utility, and renewable electricity produced on site)"]
["energy type","% of source considered renewable","total quantity of electricity use (annual use)","UNIT (please use kWh)","% allocated to product final manufacture","final production electricity (kWh)","% renewable electricity in product,  by source","comment (Please include comment regarding: allocation assumptions, electricity use data sources, provider name, and list any provided documentation.)"]
["Conventional purchased electricity - residual grid mix",null,null,"kWh",null,{"$f":"C13*E13","v":0},{"$f":"(B13*F13)/$F$17","v":{"$error":"#DIV/0!"}}]
["Green power purchased through utility",null,null,"kWh",null,{"$f":"C14*(E14)","v":0},{"$f":"(B14*F14)/$F$17","v":{"$error":"#DIV/0!"}}]
["Onsite renewable electricity",null,null,"kWh",null,{"$f":"C15*(E15)","v":0},{"$f":"(B15*F15)/$F$17","v":{"$error":"#DIV/0!"}}]
[]
["Total electricity use:",null,{"$f":"SUM(C13:C16)","v":0},"kWh",null,{"$f":"SUM(F13:F16)","v":0},{"$f":"SUM(G13:G16)","v":{"$error":"#DIV/0!"}}]
["Table 1b: Annual purchase of Renewable Energy Certificates (RECs) / Guarantees of Origin"]
["Purchased RECs",null,null,"kWh",null,{"$f":"C19*E19","v":0},{"$f":"F19/F17","v":{"$error":"#DIV/0!"}}]
[]
[null,null,"Total % product relevant renewable electricity:",{"$nulls":3},{"$f":"SUM(G17:G20)","v":{"$error":"#DIV/0!"}}]
[]
["Table 2: Annual GHG emissions - Direct onsite emissions from stationary combustion and other sources"]
["source/fuel (fossil; non-biomass waste-to-energy; non-renewable; other GHG discharges)","total quantity","UNIT (select)","emission factor (tCO2e/[unit of fuel or mass of direct emission])","emissions (tCO2e)","% allocation to final manufacture of product","product final manufacture emissions (tCO2e)","comment (Please include comment regarding: allocation assumptions, fuel use data sources, other on-site emissions assumptions, and list any provided documentation.)"]
["natural gas",null,"m3",{"$f":"IF(C25=\"\",\"\",VLOOKUP(C25,'CO2 Emission Factors'!B4:C10,2,FALSE))","v":{"v":1.8867911999999997E-3,"d":"1.89E-03"}},{"$f":"IF(B25=0,\"\",B25*D25)","v":""},null,{"$f":"IF(B25=0,\"\",E25*F25)","v":""}]
["liquefied petroleum distillates (LPG) including propane",null,"liter",{"$f":"IF(C26=\"\",\"\",VLOOKUP(C26,'CO2 Emission Factors'!B11:C12,2,FALSE))","v":{"v":0.001613028384,"d":"1.61E-03"}},"",null,""]
["motor gasoline",null,"liter",{"$f":"IF(C27=\"\",\"\",VLOOKUP(C27,'CO2 Emission Factors'!B13:C14,2,FALSE))","v":{"v":2.2799553179999998E-3,"d":"2.28E-03"}},"",null,""]
["diesel",null,"liter",{"$f":"IF(C28=\"\",\"\",VLOOKUP(C28,'CO2 Emission Factors'!B15:C16,2,FALSE))","v":{"v":2.68548588E-3,"d":"2.69E-03"}},"",null,""]
["[list all other sources]",{"$nulls":3},"",null,""]
["plastic production waste",null,"metric tons",{"v":3.14,"d":"3.14E+00"},"",null,""]
["CH4 emissions from water treatment pond",null,"metric tons",{"v":72,"d":"7.20E+01"},null,null,{"$f":"IF(B31=0,\"\",E31*F31)","v":""}]
["biomass: wood (not offset exempt - see reference in table below)",null,"kg",{"$f":"IF(C32=\"\",\"\",VLOOKUP(C32,'CO2 Emission Factors'!B17:C18,2,FALSE))","v":{"v":1.7763719999999996E-3,"d":"1.78E-03"}},null,null,{"$f":"IF(B32=0,\"\",E32*F32)","v":""}]
[{"$nulls":4},"",null,""]
[null,"Direct on-site emissions  (fossil; non-renewable):",null,null,{"$f":"SUM(E25:E33)","v":{"v":0,"d":"0.0"}},{"$f":"G34/E34","v":{"$error":"#DIV/0!"}},{"$f":"SUM(G25:G33)","v":{"v":0,"d":"0.0"}}]
[]
["source/fuel (renewable; biomass)","total quantity","UNIT (select)","emission factor (tCO2e/unit of fuel)","emissions (tCO2e)","% allocated to product final manufacture","product final manufacture emissions (tCO2e)","comment (Please include comment regarding: allocation assumptions, fuel use data sources, other on-site emissions assumptions, and list any provided documentation.)"]
["biomass: woody waste (offset exempt - sourced  per reference in column I)",null,"kg",{"$f":"IF(C37=\"\",\"\",VLOOKUP(C37,'CO2 Emission Factors'!B17:C18,2,FALSE))","v":{"v":1.7763719999999996E-3,"d":"1.78E-03"}},{"$f":"IF(B37=0,\"\",B37*D37)","v":""},null,{"$f":"IF(B37=0,\"\",E37*F37)","v":""},"Reference for eligible sources: Green-e® Renewable Energy Standard for Canada and the United States ('Appendix D') https://www.green-e.org/programs/energy/documents"]
["[list all other eligible sources]",{"$nulls":3},{"$f":"IF(B38=0,\"\",B38*D38)","v":""},null,{"$f":"IF(B38=0,\"\",E38*F38)","v":""}]
[{"$nulls":4},{"$f":"IF(B39=0,\"\",B39*D39)","v":""},null,{"$f":"IF(B39=0,\"\",E39*F39)","v":""}]
[{"$nulls":4},{"$f":"IF(B40=0,\"\",B40*D40)","v":""},null,{"$f":"IF(B40=0,\"\",E40*F40)","v":""}]
[null,"Direct on-site emissions (renewable; biomass):",null,null,{"$f":"SUM(E37:E40)","v":{"v":0,"d":"0.0"}},{"$f":"G41/E41","v":{"$error":"#DIV/0!"}},{"$f":"SUM(G37:G40)","v":{"v":0,"d":"0.00"}}]
[]
["Table 3: Purchased carbon offsets"]
["offset project name","project type","offset registry","project location","purchase date","total offsets purchase (tCO2e)","% allocated to product final manufacture","product relevant offsets (tCO2e)","comment (Provide receipt of purchase for offsets including amount purchased, seller name, project type, etc. as indicated in supporting guidance)"]
[{"$nulls":7},{"$f":"F45*G45","v":{"v":0,"d":"0.00"}}]
[]
[]
[{"$nulls":5},{"$f":"SUM(F45:F47)","v":{"v":0,"d":"0.0"}},null,{"$f":"SUM(H45:H47)","v":{"v":0,"d":"0.0"}}]
[]
["Table 4a: Renewable energy - Product totals",{"$nulls":4},"Table 4b: GHG emissions - Product totals, adjustments and offset purchase requirements"]
["Purchased Electricity",{"$nulls":4},"On-site Emissions"]
["Product relevant electricity use (kWh)",null,null,{"$f":"F17","v":0},null,"Direct emissions\n(fossil; non-renewable) (tCO2e)",{"$nulls":4},{"$f":"G34","v":{"v":0,"d":"0.0"}}]
["Renewable electricity through utility (Green power pricing) (kWh)",null,null,{"$f":"F14","v":0},null,"Direct emissions (biomass; renewable) (tCO2e) - Exempt from offset requirement",{"$nulls":4},{"$f":"G41","v":{"v":0,"d":"0.00"}}]
["On-site renewable electricity (kWh)",null,null,{"$f":"F15","v":0},null,"Emissions to be offset (tCO2e)",{"$nulls":4},{"$f":"K52","v":{"v":0,"d":"0.0"}}]
["Purchased RECS (kWh)",null,null,{"$f":"F19","v":0},null,"Carbon offsets purchased",{"$nulls":4},{"$f":"H48","v":{"v":0,"d":"0.00"}}]
["Total Renewable electricity (kWh)",null,null,{"$f":"SUM(D53:D55)","v":0},null,"% direct emissions offset/avoided",{"$nulls":4},{"$f":"K55/K54","v":{"$error":"#DIV/0!"}}]
["% Renewable energy",null,null,{"$f":"D56/D52","v":{"$error":"#DIV/0!"}}]
[]
["Supporting documentation: Please provide receipts of purchase for offsets, RECs/GOs, and energy (e.g. utility bills) including amounts purchased, seller name, project type (for offsets), and certifications (e.g. Green-e for RECs)"]

{"sheet":"Alternate Energy Inventory","index":2,"n_rows":55,"n_cols":11,"rows_kept":55,"merged":[[4,1,4,3],[5,1,5,3],[6,1,6,3],[7,1,7,3],[8,1,8,3],[19,7,19,9],[20,7,20,9],[21,7,21,9],[22,7,22,9],[23,7,23,9],[24,7,24,9],[25,7,25,9],[26,7,26,9],[27,7,27,9],[28,7,28,9],[31,7,31,9],[32,7,32,9],[33,7,33,9],[34,7,34,9],[35,7,35,9],[36,1,36,3],[39,8,39,9],[40,8,40,9],[41,8,41,9],[42,8,42,9],[46,0,46,4],[47,0,47,4],[48,0,48,4],[49,0,49,4],[50,0,50,4],[51,0,51,4],[52,0,52,4]]}
["Cradle to Cradle Certified(CM) Silver level and above"]
["Energy Data Worksheet: Alternate Inventory Option - Using only carbon off-sets",{"$nulls":9},"Cradle to Cradle Certified™ Products Program"]
["Fill in these tables when only carbon offsets will be employed. If Renewable Energy Certificates (RECs) and/or on-site renewables are in use, please fill in the 'Energy Inventory' sheet"]
["Facility information"]
["Facility name:"]
["Address:",{"$nulls":6},"Goal","Actual"]
["Country:",{"$nulls":5},"Emissions offset goal (%):",null,{"$f":"F53","v":{"$error":"#VALUE!"}}]
["US eGRID region:"]
["Date range of data:",{"$nulls":4},"Emissions"]
[{"$nulls":5},"Offsets"]
[]
["Table 5: Annual GHG emissions - Purchased electricity and heat"]
["purchased source","total quantity","UNIT","% allocation to final manufacture of product","product electricity-final manufacturing (assuming same units)","emission factor (tCO2e/MWh)","product emissions -  final manufacturing stage (tCO2e)","nuclear factor (multiplier)\nAssumes electricity is in units of MWh","purchased electricity and heat - adjusted product emissions (tCO2e)","Comment"]
["purchased electricity - residual grid mix",null,"MWh",null,{"$f":"IF(B14=0,\"\",B14*D14)","v":""},{"$f":"IF(B7=\"United States\",VLOOKUP(B8,'CO2 Emission Factors'!I4:M29,5,FALSE),VLOOKUP(B7,'CO2 Emission Factors'!F4:G145,2,FALSE))","v":{"$error":"#N/A"}},{"$f":"IF(B14=0,\"\",E14*F14)","v":""},{"$f":"IFERROR(VLOOKUP(B7,Table1[],3,FALSE),)","v":{"v":0,"d":"0.00"}},{"$f":"IF(H14=\"need to calculate\",\"\",(H14*E14)+G14)","v":{"$error":"#VALUE!"}}]
["purchased heat",null,"mmBtu",null,{"$f":"IF(B15=0,\"\",B15*D15)","v":""},null,{"$f":"IF(B15=0,\"\",E15*F15)","v":""},null,{"$f":"IF(H15=\"\",\"\",(H15*E15)+G15)","v":""}]
[{"$nulls":4},{"$f":"IF(B16=0,\"\",B16*D16)","v":""},null,{"$f":"IF(B16=0,\"\",E16*F16)","v":""},null,{"$f":"IF(H16=\"\",\"\",(H16*E16)+G16)","v":""}]
[{"$nulls":6},{"$f":"SUM(G14:G16)","v":{"v":0,"d":"0.0"}},"Total:",{"$f":"SUM(I14:I16)","v":{"$error":"#VALUE!"}}]
[]
["Table 6: Annual GHG emissions - Direct onsite emissions from stationary combustion and other sources"]
["direct source","total quantity","UNIT (select)","emission factor (tCO2e/[unit of fuel or mass of direct emission])","total emissions (tCO2e)","% allocation to final manufacture of product","direct product emissions - final manufacture stage (tCO2e)","comment (Please include comment regarding: allocation assumptions, fuel use data sources, other on-site emissions assumptions, and list any provided documentation.)\t\t\t"]
["natural gas",null,"m3",{"$f":"IF(C21=\"\",\"\",VLOOKUP(C21,'CO2 Emission Factors'!B4:C10,2,FALSE))","v":{"v":1.8867911999999997E-3,"d":"1.89E-03"}},{"$f":"IF(B21=0,\"\",B21*D21)","v":""},null,{"$f":"IF(B21=0,\"\",E21*F21)","v":""}]
["liquefied petroleum distillates (LPG) including propane",null,"liter",{"$f":"IF(C22=\"\",\"\",VLOOKUP(C22,'CO2 Emission Factors'!B11:C12,2,FALSE))","v":{"v":0.001613028384,"d":"1.61E-03"}},"",null,""]
["motor gasoline",null,"liter",{"$f":"IF(C23=\"\",\"\",VLOOKUP(C23,'CO2 Emission Factors'!B13:C14,2,FALSE))","v":{"v":2.2799553179999998E-3,"d":"2.28E-03"}},"",null,""]
["diesel",null,"liter",{"$f":"IF(C24=\"\",\"\",VLOOKUP(C24,'CO2 Emission Factors'!B15:C16,2,FALSE))","v":{"v":2.68548588E-3,"d":"2.69E-03"}},"",null,""]
["[list all other sources]",{"$nulls":3},"",null,""]
["plastic production waste - Waste to Energy combustion",null,"metric tons",{"v":3.14,"d":"3.14E+00"},"",null,""]
["CH4 emissions from water treatment pond",null,"metric tons",{"v":72,"d":"7.20E+01"},null,null,{"$f":"IF(B27=0,\"\",E27*F27)","v":""}]
["biomass: wood (not offset exempt - see reference in table below)",null,"kg",{"$f":"IF(C28=\"\",\"\",VLOOKUP(C28,'CO2 Emission Factors'!B17:C18,2,FALSE))","v":{"v":1.7763719999999996E-3,"d":"1.78E-03"}},null,null,{"$f":"IF(B28=0,\"\",E28*F28)","v":""}]
[{"$nulls":4},{"$f":"IF(B29=0,\"\",B29*D29)","v":""},null,{"$f":"IF(B29=0,\"\",E29*F29)","v":""}]
[{"$nulls":3},"Total:",{"$f":"SUM(E21:E29)","v":{"v":0,"d":"0.0"}},{"$f":"G30/E30","v":{"$error":"#DIV/0!"}},{"$f":"SUM(G21:G29)","v":{"v":0,"d":"0.00"}}]
[]
["source/fuel (renewable; biomass)","total quantity","UNIT (select)","emission factor (tCO2e/unit of fuel)","emissions (tCO2e)","% allocated to product final manufacture","product final manufacture emissions (tCO2e)","comment (Please include comment regarding: allocation assumptions, fuel use data sources, other on-site emissions assumptions, and list any provided documentation.)\t\t\t"]
["biomass: woody waste (offset exempt - sourced  per reference in column I)",null,"kg",{"$f":"IF(C33=\"\",\"\",VLOOKUP(C33,'CO2 Emission Factors'!B17:C18,2,FALSE))","v":{"v":1.7763719999999996E-3,"d":"1.78E-03"}},{"$f":"IF(B33=0,\"\",B33*D33)","v":""},null,{"$f":"IF(B33=0,\"\",E33*F33)","v":""},"Reference for eligible sources: Green-e® Renewable Energy Standard for Canada and the United States ('Appendix D') https://www.green-e.org/programs/energy/documents\t\t\t"]
["[list all other sources]",{"$nulls":3},{"$f":"IF(B34=0,\"\",B34*D34)","v":""},null,{"$f":"IF(B34=0,\"\",E34*F34)","v":""}]
[{"$nulls":4},{"$f":"IF(B35=0,\"\",B35*D35)","v":""},null,{"$f":"IF(B35=0,\"\",E35*F35)","v":""}]
[{"$nulls":4},{"$f":"IF(B36=0,\"\",B36*D36)","v":""},null,{"$f":"IF(B36=0,\"\",E36*F36)","v":""}]
[null,"Direct on-site emissions (renewable; biomass):",null,null,{"$f":"SUM(E33:E36)","v":{"v":0,"d":"0.0"}},{"$f":"G37/E37","v":{"$error":"#DIV/0!"}},{"$f":"SUM(G33:G36)","v":{"v":0,"d":"0.00"}}]
[]
["Table 7: Purchased Carbon Offsets"]
["offset Project Name","project Type","offset Registry","project Location","purchase Date","total offsets purchase (tCO2e)","% allocated to product final manufacture","Product relevant offsets (tCO2e)","Comment"]
[{"$nulls":7},{"$f":"G41*F41","v":{"v":0,"d":"0.00"}}]
[]
[]
[{"$nulls":5},{"$f":"SUM(F41:F43)","v":{"v":0,"d":"0.0"}},"Total:",{"$f":"SUM(H41:H43)","v":{"v":0,"d":"0.0"}}]
[]
["Table 8: GHG emissions - Product Totals"]
["purchased electricity and heat GHG emissions (tCO2e)",{"$nulls":4},{"$f":"I17","v":{"$error":"#VALUE!"}}]
["on site GHG emissions from conventional sources, and non-fuel (tCO2e)",{"$nulls":4},{"$f":"G30","v":{"v":0,"d":"0.00"}}]
["on site emissions from renewable sources (tCO2e) - Exempt from offset requirement",{"$nulls":4},{"$f":"G37","v":{"v":0,"d":"0.00"}}]
["GHG emissions total from non-exempt sources (tCO2e)",{"$nulls":4},{"$f":"F48+F47","v":{"$error":"#VALUE!"}}]
["quantity of carbon offsets purchased (tCO2e)",{"$nulls":4},{"$f":"H44","v":{"v":0,"d":"0.0"}}]
["adjusted total after offset purchase (tCO2e)",{"$nulls":4},{"$f":"F50-F51","v":{"$error":"#VALUE!"}}]
["% GHG emissions offset",{"$nulls":4},{"$f":"F51/F50","v":{"$error":"#VALUE!"}}]
[]
["Supporting documentation: Please provide receipts of purchase for offsets and energy (e.g. utility bills) including amounts purchased, seller name, project type and standard (for offsets)."]

{"sheet":"Nuclear Factors","index":3,"n_rows":37,"n_cols":3,"rows_kept":37,"merged":[[1,0,1,2]]}
["Nuclear factors"]
["These factors are to be used with the \"Alternative Energy Inventory\" worksheet. Factors are for electricity generated using nuclear power, if using a grid emissions factor based on regional or countrywide average. The multiplier is calculated as follows: \n% nuclear*(0.891 tCO2/MWh) = Emissions that would have resulted if using coal instead of nuclear (tCO2/MWh). 0.891 tCO2/MWh = emissions factor for electricity produced from coal."]
["Country","Nuclear share of electricity production","Multiplier (for energy reported in MWh)"]
["Argentina",{"v":0.044000000000000004,"d":"4.40%"},{"$f":"Table1[[#This Row],[Nuclear share of electricity production]]*0.891","v":0.039204}]
["Armenia",{"v":0.292,"d":"29.20%"},{"$f":"Table1[[#This Row],[Nuclear share of electricity production]]*0.891","v":0.260172}]
["Belgium",{"v":0.521,"d":"52.10%"},{"$f":"Table1[[#This Row],[Nuclear share of electricity production]]*0.891","v":0.46421100000000004}]
["Brazil ",{"v":0.027999999999999997,"d":"2.80%"},{"$f":"Table1[[#This Row],[Nuclear share of electricity production]]*0.891","v":0.024947999999999998}]
["Bulgaria",{"v":0.307,"d":"30.70%"},{"$f":"Table1[[#This Row],[Nuclear share of electricity production]]*0.891","v":0.273537}]
["Canada",{"v":0.16,"d":"16.00%"},{"$f":"Table1[[#This Row],[Nuclear share of electricity production]]*0.891","v":0.14256}]
["China (mainland)",{"v":0.021,"d":"2.10%"},{"$f":"Table1[[#This Row],[Nuclear share of electricity production]]*0.891","v":0.018711000000000002}]
["China (Taiwan)",{"v":0.191,"d":"19.10%"},{"$f":"Table1[[#This Row],[Nuclear share of electricity production]]*0.891","v":0.170181}]
["Czech Republic",{"v":0.359,"d":"35.90%"},{"$f":"Table1[[#This Row],[Nuclear share of electricity production]]*0.891","v":0.319869}]
["Finland",{"v":0.33299999999999996,"d":"33.30%"},{"$f":"Table1[[#This Row],[Nuclear share of electricity production]]*0.891","v":0.296703}]
["France",{"v":0.733,"d":"73.30%"},{"$f":"Table1[[#This Row],[Nuclear share of electricity production]]*0.891","v":0.653103}]
["Germany",{"v":0.155,"d":"15.50%"},{"$f":"Table1[[#This Row],[Nuclear share of electricity production]]*0.891","v":0.138105}]
["Hungary",{"v":0.507,"d":"50.70%"},{"$f":"Table1[[#This Row],[Nuclear share of electricity production]]*0.891","v":0.451737}]
["India",{"v":0.035,"d":"3.50%"},{"$f":"Table1[[#This Row],[Nuclear share of electricity production]]*0.891","v":0.031185000000000004}]
["Islamic Republic of Iran",{"v":0.015,"d":"1.50%"},{"$f":"Table1[[#This Row],[Nuclear share of electricity production]]*0.891","v":0.013365}]
["Japan",{"v":0.017,"d":"1.70%"},{"$f":"Table1[[#This Row],[Nuclear share of electricity production]]*0.891","v":0.015147}]
["Korea",{"v":0.276,"d":"27.60%"},{"$f":"Table1[[#This Row],[Nuclear share of electricity production]]*0.891","v":0.24591600000000002}]
["Lithuania",{"v":0,"d":"0.00%"},{"$f":"Table1[[#This Row],[Nuclear share of electricity production]]*0.891","v":0}]
["Mexico",{"v":0.046,"d":"4.60%"},{"$f":"Table1[[#This Row],[Nuclear share of electricity production]]*0.891","v":0.040986}]
["Netherlands",{"v":0.027999999999999997,"d":"2.80%"},{"$f":"Table1[[#This Row],[Nuclear share of electricity production]]*0.891","v":0.024947999999999998}]
["Pakistan",{"v":0.044000000000000004,"d":"4.40%"},{"$f":"Table1[[#This Row],[Nuclear share of electricity production]]*0.891","v":0.039204}]
["Romania",{"v":0.198,"d":"19.80%"},{"$f":"Table1[[#This Row],[Nuclear share of electricity production]]*0.891","v":0.17641800000000002}]
["Russia",{"v":0.175,"d":"17.50%"},{"$f":"Table1[[#This Row],[Nuclear share of electricity production]]*0.891","v":0.15592499999999998}]
["Slovakia",{"v":0.517,"d":"51.70%"},{"$f":"Table1[[#This Row],[Nuclear share of electricity production]]*0.891","v":0.46064700000000003}]
["Slovenia",{"v":0.336,"d":"33.60%"},{"$f":"Table1[[#This Row],[Nuclear share of electricity production]]*0.891","v":0.29937600000000003}]
["South Africa",{"v":0.057,"d":"5.70%"},{"$f":"Table1[[#This Row],[Nuclear share of electricity production]]*0.891","v":0.050787000000000006}]
["Spain",{"v":0.19699999999999998,"d":"19.70%"},{"$f":"Table1[[#This Row],[Nuclear share of electricity production]]*0.891","v":0.175527}]
["Sweden",{"v":0.42700000000000005,"d":"42.70%"},{"$f":"Table1[[#This Row],[Nuclear share of electricity production]]*0.891","v":0.38045700000000005}]
["Switzerland",{"v":0.364,"d":"36.40%"},{"$f":"Table1[[#This Row],[Nuclear share of electricity production]]*0.891","v":0.324324}]
["United Kingdom",{"v":0.183,"d":"18.30%"},{"$f":"Table1[[#This Row],[Nuclear share of electricity production]]*0.891","v":0.163053}]
["Ukraine",{"v":0.436,"d":"43.60%"},{"$f":"Table1[[#This Row],[Nuclear share of electricity production]]*0.891","v":0.388476}]
["United States",{"v":0.19399999999999998,"d":"19.40%"},{"$f":"Table1[[#This Row],[Nuclear share of electricity production]]*0.891","v":0.17285399999999998}]
[]
["reference: world-nuclear.org (2015)"]

{"sheet":"CO2 Emission Factors","index":4,"n_rows":145,"n_cols":13,"rows_kept":145,"merged":[[1,0,1,3],[1,5,1,12]]}
["Energy Inventory - CO2 Emission Factors for Common Fuels and Units",{"$nulls":4},"Alternate Energy Inventory - CO2 Emissions Factors for Purchased Electricity"]
["The factors below were taken from: World Resources Institute (2008), GHG Protocol tool for stationary combustion, Version 4.0. Please refer to this reference for factors relevant to additional fuel types and for further information. Factors are based on the 1995 IPCC Second Assessment Report and are for the Manufacturing sector. Factors were determined by entering in 1 unit of fuel by volume or energy content into the Spreadsheet and copying the total tCO2e.",{"$nulls":4},"The factors below were taken from: World Resources Institute (2012), GHG Protocol, Emission Factors from Cross Sector Tools (August 2012) and Energy GHG emissions from purchased Electricity Version 4.4 August, 2012 and the references therein. Please refer to these GHG Protocol references for additional factors and further information. For example, there are more specific regional factors for China and some other areas, factors relevant to the specific fuel mix (oil, coal, gas), and factors for earlier years. The factors below are for the most recent year of data available as of April, 26, 2013 and are for all fuel types."]
["Fuel","Fuel units","Emissions factor (LHV if applicable)","Factor units",null,"Country","2009 tCO2e/MWh (All fuel types)",null,"eGRID subregion name ","eGRID subregion annual CO2 output emission rate (kg/MWh)","eGRID subregion annual CH4 output emission rate (kg/GWh)","eGRID subregion annual N2O output emission rate (kg/GWh)","2009 Total tCO2e/MWh"]
["natural gas","m3",{"v":1.8867911999999997E-3,"d":"0.00189"},"tCO2e/m3",null,"Albania",{"v":0.011175,"d":"0.0112"},null,"ASCC Alaska Grid",{"v":580.9881975124965,"d":"580.99"},{"v":12.581306529016338,"d":"12.58"},{"v":3.4870862098683677,"d":"3.49"},{"$f":"(J4+(K4/1000)*25+(L4/1000)*298)/1000","v":{"v":0.5823418818662627,"d":"0.582"}}]
["natural gas","ccf",{"v":0.005343154790399999,"d":"0.00534"},"tCO2e/ccf",null,"Algeria",{"v":0.575967,"d":"0.5760"},null,"ASCC Miscellaneous",{"v":236.44070179894948,"d":"236.44"},{"v":9.880070034745218,"d":"9.88"},{"v":1.942012682457748,"d":"1.94"},{"$f":"(J5+(K5/1000)*25+(L5/1000)*298)/1000","v":{"v":0.23726642332919054,"d":"0.237"}}]
["natural gas","mcf",{"v":0.053431547903999996,"d":"0.05343"},"tCO2e/mcf",null,"Angola",{"v":0.23745,"d":"0.2375"},null,"ERCOT All",{"v":536.0231241665231,"d":"536.02"},{"v":7.57636236630349,"d":"7.58"},{"v":5.9436546887899055,"d":"5.94"},{"v":0.5379837423229401,"d":"0.538"}]
["natural gas","mmBtu (LHV)",{"v":0.05924597520000001,"d":"0.05925"},"tCO2e/mmBtu",null,"Argentina",{"v":0.355311,"d":"0.3553"},null,"FRCC All",{"v":533.700365595885,"d":"533.70"},{"v":17.798078580435632,"d":"17.80"},{"v":6.138427484101569,"d":"6.14"},{"v":0.5359745689506582,"d":"0.536"}]
["natural gas","mmBtu (HHV)",{"v":0.05332137768,"d":"0.05332"},"tCO2e/mmBtu",null,"Armenia",{"v":0.108001,"d":"0.1080"},null,"HICC Miscellaneous",{"v":613.1045259500504,"d":"613.10"},{"v":32.83949161306711,"d":"32.84"},{"v":6.261441881140515,"d":"6.26"},{"v":0.615791422920957,"d":"0.616"}]
["natural gas","therm (LHV)",{"v":5.9244566364211855E-3,"d":"0.00592"},"tCO2e/therm",null,"Australia",{"v":0.852931,"d":"0.8529"},null,"HICC Oahu",{"v":722.7314911413306,"d":"722.73"},{"v":46.15076521123822,"d":"46.15"},{"v":9.970198945850079,"d":"9.97"},{"v":0.7268563795574748,"d":"0.727"}]
["natural gas","therm (HHV)",{"v":5.3320109727790655E-3,"d":"0.00533"},"tCO2e/therm",null,"Austria",{"v":0.163232,"d":"0.1632"},null,"MRO East",{"v":721.961970770473,"d":"721.96"},{"v":10.877566201885132,"d":"10.88"},{"v":12.265741941921965,"d":"12.27"},{"v":0.7258891010242129,"d":"0.726"}]
["liquefied petroleum distillates (LPG) including propane","liter",{"v":0.001613028384,"d":"0.00161"},"tCO2e/liter",null,"Azerbaijan",{"v":0.443425,"d":"0.4434"},null,"MRO West",{"v":738.7228638041931,"d":"738.72"},{"v":13.062704683800385,"d":"13.06"},{"v":12.605437671798315,"d":"12.61"},{"v":0.742805851847484,"d":"0.743"}]
["liquefied petroleum distillates (LPG) including propane","gallon",{"v":0.006105312433440001,"d":"0.00611"},"tCO2e/gallon",null,"Bahrain",{"v":0.66487,"d":"0.6649"},null,"NPCC Long Island",{"v":611.4378895229111,"d":"611.44"},{"v":43.93709573531947,"d":"43.94"},{"v":5.612441146320001,"d":"5.61"},{"v":0.6142088243778974,"d":"0.614"}]
["motor gasoline","liter",{"v":2.2799553179999998E-3,"d":"0.00228"},"tCO2e/liter",null,"Bangladesh",{"v":0.585287,"d":"0.5853"},null,"NPCC New England",{"v":330.40102149123203,"d":"330.40"},{"v":34.32981647630885,"d":"34.33"},{"v":6.284529760230789,"d":"6.28"},{"v":0.3331320567716885,"d":"0.333"}]
["motor gasoline","gallon",{"v":0.008629630878629998,"d":"0.00863"},"tCO2e/gallon",null,"Belarus",{"v":0.30233,"d":"0.3023"},null,"NPCC NYC/Westchester",{"v":276.99499233427986,"d":"276.99"},{"v":10.773239832714937,"d":"10.77"},{"v":1.2730085003311231,"d":"1.27"},{"v":0.27764367986319644,"d":"0.278"}]
["diesel","liter",{"v":2.68548588E-3,"d":"0.00269"},"tCO2e/liter",null,"Belgium",{"v":0.217893,"d":"0.2179"},null,"NPCC Upstate NY",{"v":225.85230107682958,"d":"225.85"},{"v":7.229772024203719,"d":"7.23"},{"v":3.0687828287868206,"d":"3.07"},{"v":0.22694754266041312,"d":"0.227"}]
["diesel","gallon",{"v":0.0101645640558,"d":"0.01016"},"tCO2e/gallon",null,"Benin",{"v":0.725008,"d":"0.7250"},null,"RFC East",{"v":429.74467255127877,"d":"429.74"},{"v":12.173571862724643,"d":"12.17"},{"v":6.786838548139817,"d":"6.79"},{"v":0.43207148973519255,"d":"0.432"}]
["biomass: wood","kg",{"v":1.7763719999999996E-3,"d":"0.00178"},"tCO2e/kg",null,"Bolivia",{"v":0.393305,"d":"0.3933"},null,"RFC Michigan",{"v":752.7178379947565,"d":"752.72"},{"v":14.246899692464009,"d":"14.25"},{"v":12.649980495504895,"d":"12.65"},{"v":0.7568437046747284,"d":"0.757"}]
["biomass: wood","metric ton",{"$f":"C17*1000","v":{"v":1.7763719999999996,"d":"1.77637"}},"tCO2e/t",null,"Bosnia and Herzegovina",{"v":0.775965,"d":"0.7760"},null,"RFC West",{"v":689.7302482967588,"d":"689.73"},{"v":8.218649926064357,"d":"8.22"},{"v":11.400332030009709,"d":"11.40"},{"v":0.6933330134898533,"d":"0.693"}]
[{"$nulls":5},"Botswana",{"v":2.063252,"d":"2.0633"},null,"SERC Midwest",{"v":793.6755540637389,"d":"793.68"},{"v":8.877221471273963,"d":"8.88"},{"v":13.14625649771843,"d":"13.15"},{"v":0.7978150690368409,"d":"0.798"}]
[{"$nulls":5},"Brazil",{"v":0.064128,"d":"0.0641"},null,"SERC Mississippi Valley",{"v":454.6869301739075,"d":"454.69"},{"v":8.821293465540547,"d":"8.82"},{"v":4.832760294291081,"d":"4.83"},{"v":0.4563476250782448,"d":"0.456"}]
[{"$nulls":5},"Brunei Darussalam",{"v":0.755225,"d":"0.7552"},null,"SERC South",{"v":601.3209532708585,"d":"601.32"},{"v":10.102285201077738,"d":"10.10"},{"v":9.423619489980133,"d":"9.42"},{"v":0.6043817490088995,"d":"0.604"}]
[{"$nulls":5},"Bulgaria",{"v":0.463447,"d":"0.4634"},null,"SERC Tennessee Valley",{"v":615.8479465848991,"d":"615.85"},{"v":7.836724696319548,"d":"7.84"},{"v":10.018234434959314,"d":"10.02"},{"v":0.619029298563925,"d":"0.619"}]
[{"$nulls":5},"Cambodia",{"v":1.150925,"d":"1.1509"},null,"SERC Virginia/Carolina",{"v":469.86265206702296,"d":"469.86"},{"v":9.757509230615709,"d":"9.76"},{"v":7.913744772341719,"d":"7.91"},{"v":0.47246488573994616,"d":"0.472"}]
[{"$nulls":5},"Cameroon",{"v":0.242681,"d":"0.2427"},null,"SPP North",{"v":823.6146365360017,"d":"823.61"},{"v":9.52935199716958,"d":"9.53"},{"v":13.104752746505067,"d":"13.10"},{"v":0.8277580866543895,"d":"0.828"}]
[{"$nulls":5},"Canada",{"v":0.167232,"d":"0.1672"},null,"SPP South",{"v":725.3026825484665,"d":"725.30"},{"v":10.545127958559753,"d":"10.55"},{"v":9.882655514329002,"d":"9.88"},{"v":0.7285113420907003,"d":"0.729"}]
[{"$nulls":5},"Chile",{"v":0.37282,"d":"0.3728"},null,"WECC California",{"v":298.7746641144506,"d":"298.77"},{"v":13.12716023623119,"d":"13.13"},{"v":2.7965363645435497,"d":"2.80"},{"v":0.29993621095699036,"d":"0.300"}]
[{"$nulls":5},"China (mainland)",{"v":0.742746,"d":"0.7427"},null,"WECC Northwest",{"v":371.58689479366063,"d":"371.59"},{"v":6.936841723290183,"d":"6.94"},{"v":5.670092805109271,"d":"5.67"},{"v":0.3734500034926655,"d":"0.373"}]
[{"$nulls":5},"China (Taiwan)",{"v":0.634782,"d":"0.6348"},null,"WECC Rockies",{"v":827.5859331766927,"d":"827.59"},{"v":10.091988642033549,"d":"10.09"},{"v":12.333327285427876,"d":"12.33"},{"v":0.8315135644238011,"d":"0.832"}]
[{"$nulls":5},"Colombia",{"v":0.175271,"d":"0.1753"},null,"WECC Southwest",{"v":540.3880487340223,"d":"540.39"},{"v":8.678003465449828,"d":"8.68"},{"v":7.067793996244251,"d":"7.07"},{"v":0.5427112014315394,"d":"0.543"}]
[{"$nulls":5},"Congo",{"v":0.20683,"d":"0.2068"}]
[{"$nulls":5},"Costa Rica",{"v":0.039811,"d":"0.0398"}]
[{"$nulls":5},"Côte d'Ivoire",{"v":0.426398,"d":"0.4264"}]
[{"$nulls":5},"Croatia",{"v":0.283388,"d":"0.2834"}]
[{"$nulls":5},"Cuba",{"v":0.751539,"d":"0.7515"}]
[{"$nulls":5},"Cyprus",{"v":0.744272,"d":"0.7443"}]
[{"$nulls":5},"Czech Republic",{"v":0.514253,"d":"0.5143"}]
[{"$nulls":5},"Dem. People's Republic of Korea",{"v":0.498864,"d":"0.4989"}]
[{"$nulls":5},"Democratic Republic of Congo",{"v":2.934E-3,"d":"0.0029"}]
[{"$nulls":5},"Denmark",{"v":0.302749,"d":"0.3027"}]
[{"$nulls":5},"Dominican Republic",{"v":0.590536,"d":"0.5905"}]
[{"$nulls":5},"Ecuador",{"v":0.289644,"d":"0.2896"}]
[{"$nulls":5},"Egypt",{"v":0.465535,"d":"0.4655"}]
[{"$nulls":5},"El Salvador",{"v":0.318783,"d":"0.3188"}]
[{"$nulls":5},"Eritrea",{"v":0.671586,"d":"0.6716"}]
[{"$nulls":5},"Estonia",{"v":0.703853,"d":"0.7039"}]
[{"$nulls":5},"Ethiopia",{"v":0.118309,"d":"0.1183"}]
[{"$nulls":5},"Finland",{"v":0.205405,"d":"0.2054"}]
[{"$nulls":5},"France",{"v":0.089851,"d":"0.0899"}]
[{"$nulls":5},"FYR of Macedonia",{"v":0.709904,"d":"0.7099"}]
[{"$nulls":5},"Gabon",{"v":0.322138,"d":"0.3221"}]
[{"$nulls":5},"Georgia",{"v":0.128642,"d":"0.1286"}]
[{"$nulls":5},"Germany",{"v":0.430496,"d":"0.4305"}]
[{"$nulls":5},"Ghana",{"v":0.186532,"d":"0.1865"}]
[{"$nulls":5},"Gibraltar",{"v":0.739517,"d":"0.7395"}]
[{"$nulls":5},"Greece",{"v":0.722399,"d":"0.7224"}]
[{"$nulls":5},"Guatemala",{"v":0.349108,"d":"0.3491"}]
[{"$nulls":5},"Haiti",{"v":0.547125,"d":"0.5471"}]
[{"$nulls":5},"Honduras",{"v":0.344323,"d":"0.3443"}]
[{"$nulls":5},"Hong Kong, China",{"v":0.762972,"d":"0.7630"}]
[{"$nulls":5},"Hungary",{"v":0.30206,"d":"0.3021"}]
[{"$nulls":5},"Iceland",{"v":0.000424,"d":"0.0004"}]
[{"$nulls":5},"India",{"v":0.951406,"d":"0.9514"}]
[{"$nulls":5},"Indonesia",{"v":0.74569,"d":"0.7457"}]
[{"$nulls":5},"Iraq",{"v":0.684086,"d":"0.6841"}]
[{"$nulls":5},"Ireland",{"v":0.465239,"d":"0.4652"}]
[{"$nulls":5},"Islamic Republic of Iran",{"v":0.629963,"d":"0.6300"}]
[{"$nulls":5},"Israel",{"v":0.694883,"d":"0.6949"}]
[{"$nulls":5},"Italy",{"v":0.386411,"d":"0.3864"}]
[{"$nulls":5},"Jamaica",{"v":0.544459,"d":"0.5445"}]
[{"$nulls":5},"Japan",{"v":0.414709,"d":"0.4147"}]
[{"$nulls":5},"Jordan",{"v":0.580548,"d":"0.5805"}]
[{"$nulls":5},"Kazakhstan",{"v":0.480058,"d":"0.4801"}]
[{"$nulls":5},"Kenya",{"v":0.394946,"d":"0.3949"}]
[{"$nulls":5},"Korea",{"v":0.497699,"d":"0.4977"}]
[{"$nulls":5},"Kuwait",{"v":0.869605,"d":"0.8696"}]
[{"$nulls":5},"Kyrgyzstan",{"v":0.080966,"d":"0.0810"}]
[{"$nulls":5},"Latvia",{"v":0.153074,"d":"0.1531"}]
[{"$nulls":5},"Lebanon",{"v":0.716672,"d":"0.7167"}]
[{"$nulls":5},"Libyan Arab Jamahiriya",{"v":0.871784,"d":"0.8718"}]
[{"$nulls":5},"Lithuania",{"v":0.111153,"d":"0.1112"}]
[{"$nulls":5},"Luxembourg",{"v":0.384286,"d":"0.3843"}]
[{"$nulls":5},"Malaysia",{"v":0.648648,"d":"0.6486"}]
[{"$nulls":5},"Malta",{"v":0.850415,"d":"0.8504"}]
[{"$nulls":5},"Mexico",{"v":0.454983,"d":"0.4550"}]
[{"$nulls":5},"Middle East",{"v":0.690258,"d":"0.6903"}]
[{"$nulls":5},"Mongolia",{"v":0.535352,"d":"0.5354"}]
[{"$nulls":5},"Morocco",{"v":0.638445,"d":"0.6384"}]
[{"$nulls":5},"Mozambique",{"v":0.000503,"d":"0.0005"}]
[{"$nulls":5},"Myanmar",{"v":0.195847,"d":"0.1958"}]
[{"$nulls":5},"Namibia",{"v":0.236901,"d":"0.2369"}]
[{"$nulls":5},"Nepal",{"v":0.004343,"d":"0.0043"}]
[{"$nulls":5},"Netherlands",{"v":0.374485,"d":"0.3745"}]
[{"$nulls":5},"Netherlands Antilles",{"v":0.706898,"d":"0.7069"}]
[{"$nulls":5},"New Zealand",{"v":0.166503,"d":"0.1665"}]
[{"$nulls":5},"Nicaragua",{"v":0.505812,"d":"0.5058"}]
[{"$nulls":5},"Nigeria",{"v":0.415734,"d":"0.4157"}]
[{"$nulls":5},"Norway",{"v":0.017288,"d":"0.0173"}]
[{"$nulls":5},"Oman",{"v":0.842488,"d":"0.8425"}]
[{"$nulls":5},"Other Africa",{"v":0.494498,"d":"0.4945"}]
[{"$nulls":5},"Other Asia",{"v":0.268073,"d":"0.2681"}]
[{"$nulls":5},"Other Latin America",{"v":0.248909,"d":"0.2489"}]
[{"$nulls":5},"Pakistan",{"v":0.457725,"d":"0.4577"}]
[{"$nulls":5},"Panama",{"v":0.302174,"d":"0.3022"}]
[{"$nulls":5},"Paraguay",{"v":0,"d":"0.0000"}]
[{"$nulls":5},"China (mainland)",{"v":0.742569,"d":"0.7426"}]
[{"$nulls":5},"Peru",{"v":0.236307,"d":"0.2363"}]
[{"$nulls":5},"Philippines",{"v":0.47816,"d":"0.4782"}]
[{"$nulls":5},"Poland",{"v":0.640198,"d":"0.6402"}]
[{"$nulls":5},"Portugal",{"v":0.368238,"d":"0.3682"}]
[{"$nulls":5},"Qatar",{"v":0.494009,"d":"0.4940"}]
[{"$nulls":5},"Republic of Moldova",{"v":0.400098,"d":"0.4001"}]
[{"$nulls":5},"Romania",{"v":0.414354,"d":"0.4144"}]
[{"$nulls":5},"Russian Federation",{"v":0.317404,"d":"0.3174"}]
[{"$nulls":5},"Saudi Arabia",{"v":0.757233,"d":"0.7572"}]
[{"$nulls":5},"Senegal",{"v":0.61445,"d":"0.6145"}]
[{"$nulls":5},"Serbia",{"v":0.680327,"d":"0.6803"}]
[{"$nulls":5},"Singapore",{"v":0.518857,"d":"0.5189"}]
[{"$nulls":5},"Slovak Republic",{"v":0.221716,"d":"0.2217"}]
[{"$nulls":5},"Slovenia",{"v":0.316025,"d":"0.3160"}]
[{"$nulls":5},"South Africa",{"v":0.925905,"d":"0.9259"}]
[{"$nulls":5},"Spain",{"v":0.298784,"d":"0.2988"}]
[{"$nulls":5},"Sri Lanka",{"v":0.460109,"d":"0.4601"}]
[{"$nulls":5},"Sudan",{"v":0.355596,"d":"0.3556"}]
[{"$nulls":5},"Sweden",{"v":0.043135,"d":"0.0431"}]
[{"$nulls":5},"Switzerland",{"v":0.039934,"d":"0.0399"}]
[{"$nulls":5},"Syrian Arab Republic",{"v":0.640891,"d":"0.6409"}]
[{"$nulls":5},"Tajikistan",{"v":0.029226,"d":"0.0292"}]
[{"$nulls":5},"Thailand",{"v":0.513381,"d":"0.5134"}]
[{"$nulls":5},"Togo",{"v":0.201571,"d":"0.2016"}]
[{"$nulls":5},"Trinidad and Tobago",{"v":0.718807,"d":"0.7188"}]
[{"$nulls":5},"Tunisia",{"v":0.53808,"d":"0.5381"}]
[{"$nulls":5},"Turkey",{"v":0.479929,"d":"0.4799"}]
[{"$nulls":5},"Turkmenistan",{"v":0.789452,"d":"0.7895"}]
[{"$nulls":5},"Ukraine",{"v":0.373955,"d":"0.3740"}]
[{"$nulls":5},"United Arab Emirates",{"v":0.631246,"d":"0.6312"}]
[{"$nulls":5},"United Kingdom",{"v":0.449501,"d":"0.4495"}]
[{"$nulls":5},"United Republic of Tanzania",{"v":0.281222,"d":"0.2812"}]
[{"$nulls":5},"United States",{"v":0.50817,"d":"0.5082"}]
[{"$nulls":5},"Uruguay",{"v":0.253179,"d":"0.2532"}]
[{"$nulls":5},"Uzbekistan",{"v":0.461476,"d":"0.4615"}]
[{"$nulls":5},"Venezuela",{"v":0.198598,"d":"0.1986"}]
[{"$nulls":5},"Vietnam",{"v":0.384103,"d":"0.3841"}]
[{"$nulls":5},"Yemen",{"v":0.630454,"d":"0.6305"}]
[{"$nulls":5},"Zambia",{"v":0.003247,"d":"0.0032"}]
[{"$nulls":5},"Zimbabwe",{"v":0.618951,"d":"0.6190"}]